[Event "2. Itzehoer Schach Open"]
[Site "Itzehoe, Germany"]
[Date "2023.05.01"]
[Round "5.21"]
[White "Hansen, Fridolin"]
[Black "Drozd, Maciej"]
[Result "1-0"]
[TimeControl "90 min / 40 Züge + 30 min + 30 Sek pro Zug"]
[WhiteElo "1764"]
[BlackElo "1334"]

1. e4 {[%clk 01:30:57]} {[%emt 00:00:03]} c5 {[%clk 01:30:58]} {[%emt
00:00:03]} 2. Nc3 {[%clk 01:31:19]} {[%emt 00:00:07]} Nc6 {[%clk 01:31:24]}
{[%emt 00:00:04]} 3. g3 {[%clk 01:31:46]} {[%emt 00:00:04]} g6 {[%clk
01:31:46]} {[%emt 00:00:07]} 4. Bg2 {[%clk 01:32:13]} {[%emt 00:00:03]} Bg7
{[%clk 01:32:09]} {[%emt 00:00:06]} 5. Nge2 {[%clk 01:32:22]} {[%emt 00:00:21]}
Nf6 {[%clk 01:32:12]} {[%emt 00:00:27]} 6. d3 {[%clk 01:32:43]} {[%emt
00:00:09]} O-O {[%clk 01:32:18]} {[%emt 00:00:24]} 7. O-O {[%clk 01:33:09]}
{[%emt 00:00:05]} d6 {[%clk 01:32:38]} {[%emt 00:00:10]} 8. h3 {[%clk
01:32:57]} {[%emt 00:00:42]} Rb8 {[%clk 01:32:52]} {[%emt 00:00:16]} 9. a4
{[%clk 01:33:12]} {[%emt 00:00:15]} a6 {[%clk 01:32:52]} {[%emt 00:00:30]} 10.
Be3 {[%clk 01:33:07]} {[%emt 00:00:35]} b5 {[%clk 01:33:06]} {[%emt 00:00:16]}
11. axb5 {[%clk 01:33:30]} {[%emt 00:00:07]} axb5 {[%clk 01:33:31]} {[%emt
00:00:05]} 12. Qd2 {[%clk 01:33:48]} {[%emt 00:00:12]} b4 {[%clk 01:31:34]}
{[%emt 00:02:28]} 13. Nd1 {[%clk 01:33:55]} {[%emt 00:00:22]} Re8 {[%clk
01:25:25]} {[%emt 00:06:39]} 14. Bh6 {[%clk 01:33:36]} {[%emt 00:00:49]} Bh8
{[%clk 01:25:34]} {[%emt 00:00:21]} 15. c3 {[%clk 01:33:55]} {[%emt 00:00:10]}
bxc3 {[%clk 01:23:49]} {[%emt 00:02:15]} 16. bxc3 {[%clk 01:34:17]} {[%emt
00:00:08]} Qb6 {[%clk 01:19:54]} {[%emt 00:04:25]} 17. Kh2 {[%clk 01:32:57]}
{[%emt 00:01:50]} Ba6 {[%emt 00:03:15]} 18. f4 {[%clk 01:32:12]} Qb5 {[%clk
01:15:27]} {[%emt 00:03:26]} 19. e5 {[%clk 01:24:06]} {[%emt 00:08:37]} Nd7
{[%clk 01:10:05]} {[%emt 00:05:52]} 20. e6 {[%clk 01:23:46]} {[%emt 00:00:50]}
fxe6 {[%emt 00:00:20]} 21. Qa2 {[%clk 01:24:08]} d5 {[%clk 00:56:50]} {[%emt
00:14:02]} 22. Qxa6 {[%clk 01:23:56]} {[%emt 00:00:43]} Qxa6 {[%clk 00:57:01]}
{[%emt 00:00:19]} 23. Rxa6 {[%clk 01:24:21]} {[%emt 00:00:04]} Rec8 {[%clk
00:55:06]} {[%emt 00:02:25]} 24. f5 {[%clk 01:19:02]} {[%emt 00:05:49]} gxf5
{[%clk 00:52:05]} {[%emt 00:03:31]} 25. Nf4 {[%clk 01:19:10]} {[%emt 00:00:22]}
Nf6 {[%clk 00:51:07]} {[%emt 00:01:28]} 26. Nxe6 {[%clk 01:18:02]} {[%emt
00:01:39]} Ne5 {[%clk 00:51:30]} {[%emt 00:00:06]} 27. Bf4 {[%clk 01:14:56]}
{[%emt 00:03:37]} Nfd7 {[%clk 00:46:20]} {[%emt 00:05:40]} 28. Bxd5 {[%clk
01:13:43]} {[%emt 00:01:42]} Rb6 {[%clk 00:45:26]} {[%emt 00:01:25]} 29. Nc7+
{[%clk 01:07:56]} {[%emt 00:06:17]} Kf8 {[%clk 00:44:41]} {[%emt 00:01:15]} 30.
Rxb6 {[%clk 01:07:16]} {[%emt 00:01:10]} Nxb6 {[%clk 00:44:50]} {[%emt
00:00:20]} 31. Bh6+ {[%clk 01:07:39]} {[%emt 00:00:08]} Bg7 {[%clk 00:44:43]}
{[%emt 00:00:37]} 32. Rxf5+ {[%clk 01:08:00]} {[%emt 00:00:09]} Nf7 {[%clk
00:45:01]} {[%emt 00:00:11]} 1-0

[Event "2. Itzehoer Schach Open"]
[Site "Itzehoe, Germany"]
[Date "2023.05.01"]
[Round "5.6"]
[White "Knuedel, Torben"]
[Black "Rick, Niklas Corvin"]
[Result "1-0"]
[TimeControl "90 min / 40 Züge + 30 min + 30 Sek pro Zug"]
[WhiteElo "2250"]
[BlackElo "1672"]

1. e4 {[%clk 01:30:58]} {[%emt 00:00:01]} c5 {[%clk 01:06:54]} {[%emt
00:38:20]} 2. Nf3 {[%clk 01:07:24]} {[%emt 00:06:01]} d6 {[%clk 01:06:48]}
{[%emt 00:00:38]} 3. d4 {[%clk 01:07:50]} {[%emt 00:00:04]} cxd4 {[%clk
01:06:58]} {[%emt 00:00:21]} 4. Nxd4 {[%clk 01:08:16]} {[%emt 00:00:04]} Nf6
{[%clk 01:07:03]} {[%emt 00:00:23]} 5. Nc3 {[%clk 01:08:43]} {[%emt 00:00:04]}
a6 {[%clk 01:07:18]} {[%emt 00:00:16]} 6. f4 {[%clk 01:09:02]} {[%emt
00:00:11]} e5 {[%clk 01:03:55]} {[%emt 00:03:53]} 7. Nf3 {[%clk 01:08:54]}
{[%emt 00:00:38]} Nc6 {[%clk 00:55:17]} {[%emt 00:09:06]} 8. fxe5 {[%clk
01:04:33]} {[%emt 00:04:53]} dxe5 {[%clk 00:47:01]} {[%emt 00:08:46]} 9. Qxd8+
{[%clk 01:04:52]} {[%emt 00:00:11]} Kxd8 {[%clk 00:46:30]} {[%emt 00:01:01]} 10.
Bg5 {[%clk 01:04:47]} {[%emt 00:00:35]} Be7 {[%clk 00:39:45]} {[%emt 00:07:14]}
11. h3 {[%clk 00:57:16]} {[%emt 00:08:02]} Be6 {[%clk 00:37:43]} {[%emt
00:02:32]} 12. O-O-O+ {[%clk 00:52:14]} {[%emt 00:05:32]} Nd7 {[%clk 00:31:43]}
{[%emt 00:06:30]} 13. Be3 {[%clk 00:50:47]} {[%emt 00:01:56]} Ke8 {[%clk
00:29:34]} {[%emt 00:02:39]} 14. Ng5 {[%clk 00:46:29]} {[%emt 00:04:48]} Bxg5
{[%clk 00:27:59]} {[%emt 00:02:06]} 15. Bxg5 {[%clk 00:46:30]} {[%emt
00:00:28]} f6 {[%clk 00:28:08]} {[%emt 00:00:22]} 16. Be3 {[%clk 00:46:56]}
{[%emt 00:00:04]} Kf7 {[%clk 00:26:06]} {[%emt 00:02:31]} 17. Be2 {[%clk
00:44:22]} {[%emt 00:03:04]} h5 {[%clk 00:23:37]} {[%emt 00:03:00]} 18. Rd2
{[%clk 00:44:03]} {[%emt 00:00:49]} g6 {[%clk 00:21:42]} {[%emt 00:02:22]} 19.
Rhd1 {[%clk 00:39:40]} {[%emt 00:04:55]} Rhd8 {[%clk 00:20:04]} {[%emt
00:02:09]} 20. Nd5 {[%clk 00:37:06]} {[%emt 00:03:04]} Bxd5 {[%clk 00:16:53]}
{[%emt 00:03:40]} 21. exd5 {[%clk 00:31:57]} {[%emt 00:05:40]} Ne7 {[%clk
00:16:20]} {[%emt 00:01:02]} 22. d6 {[%clk 00:31:35]} {[%emt 00:00:53]} Nf5
{[%clk 00:16:14]} {[%emt 00:00:37]} 23. Bf2 {[%clk 00:31:59]} {[%emt 00:00:05]}
Rac8 {[%clk 00:15:28]} {[%emt 00:01:16]} 24. g4 {[%clk 00:30:10]} {[%emt
00:02:18]} hxg4 {[%clk 00:15:13]} {[%emt 00:00:45]} 25. hxg4 {[%clk 00:30:17]}
{[%emt 00:00:24]} Ng7 {[%clk 00:15:24]} {[%emt 00:00:19]} 26. Bf3 {[%clk
00:30:34]} {[%emt 00:00:12]} Rb8 {[%clk 00:12:38]} {[%emt 00:03:17]} 27. Ba7
{[%clk 00:29:05]} {[%emt 00:01:58]} Ra8 {[%clk 00:12:55]} {[%emt 00:00:14]} 28.
Be3 {[%clk 00:29:30]} {[%emt 00:00:04]} Rab8 {[%clk 00:13:01]} {[%emt
00:00:25]} 29. Rh1 {[%clk 00:29:16]} {[%emt 00:00:44]} Rh8 {[%clk 00:06:54]}
{[%emt 00:06:36]} 30. Bxb7 {[%clk 00:27:12]} {[%emt 00:02:35]} Rxh1+ {[%clk
00:05:50]} {[%emt 00:01:33]} 31. Bxh1 {[%clk 00:27:39]} {[%emt 00:00:03]} Rh8
{[%clk 00:05:57]} {[%emt 00:00:24]} 32. Bd5+ {[%clk 00:27:25]} {[%emt
00:00:45]} Kf8 {[%clk 00:05:44]} {[%emt 00:00:42]} 33. c4 {[%clk 00:27:21]}
{[%emt 00:00:34]} f5 {[%clk 00:05:16]} {[%emt 00:00:58]} 34. c5 {[%clk
00:27:12]} {[%emt 00:00:39]} 1-0

[Event "2. Itzehoer Schach Open"]
[Site "Itzehoe, Germany"]
[Date "2023.05.01"]
[Round "5.35"]
[White "Baumann, Simon"]
[Black "Krumschmidt, Michael"]
[Result "0-1"]
[TimeControl "90 min / 40 Züge + 30 min + 30 Sek pro Zug"]
[WhiteElo "1289"]
[BlackElo "1720"]

1. e4 {[%clk 01:30:59]} {[%emt 00:00:01]} c5 {[%clk 01:26:32]} {[%emt
00:04:27]} 2. Nf3 {[%clk 01:31:23]} {[%emt 00:00:07]} d6 {[%clk 01:26:40]}
{[%emt 00:00:22]} 3. d4 {[%clk 01:31:40]} {[%emt 00:00:13]} cxd4 {[%clk
01:27:02]} {[%emt 00:00:08]} 4. Nxd4 {[%clk 01:31:59]} {[%emt 00:00:12]} Nf6
{[%clk 01:27:14]} {[%emt 00:00:17]} 5. Nc3 {[%clk 01:32:20]} {[%emt 00:00:09]}
a6 {[%clk 01:27:37]} {[%emt 00:00:07]} 6. Be2 {[%clk 01:32:18]} {[%emt
00:00:33]} e5 {[%clk 01:27:47]} {[%emt 00:00:19]} 7. Nb3 {[%clk 01:32:35]}
{[%emt 00:00:13]} Be7 {[%clk 01:28:09]} {[%emt 00:00:08]} 8. Be3 {[%clk
01:32:53]} {[%emt 00:00:12]} Be6 {[%clk 01:28:23]} {[%emt 00:00:16]} 9. Qd2
{[%clk 01:32:39]} {[%emt 00:00:44]} Nbd7 {[%clk 01:28:18]} {[%emt 00:00:34]} 10.
f4 {[%clk 01:31:18]} {[%emt 00:01:51]} Rc8 {[%clk 01:25:55]} {[%emt 00:02:53]}
11. f5 {[%clk 01:26:14]} {[%emt 00:05:35]} Bc4 {[%clk 01:25:16]} {[%emt
00:01:08]} 12. Bxc4 {[%clk 01:24:32]} {[%emt 00:02:12]} Rxc4 {[%clk 01:25:33]}
{[%emt 00:00:12]} 13. Qd3 {[%clk 01:23:28]} {[%emt 00:01:35]} b5 {[%clk
01:19:37]} {[%emt 00:06:26]} 14. O-O {[%clk 01:18:57]} {[%emt 00:03:45]} O-O
{[%clk 01:10:57]} {[%emt 00:10:27]} 15. Rf3 {[%clk 01:18:25]} {[%emt 00:01:02]}
d5 {[%clk 01:07:01]} {[%emt 00:04:25]} 16. Nxd5 {[%clk 01:15:15]} {[%emt
00:03:41]} Nxd5 {[%clk 01:05:55]} {[%emt 00:01:36]} 17. Qxd5 {[%clk 01:15:30]}
{[%emt 00:00:16]} Nf6 {[%clk 01:04:59]} {[%emt 00:01:26]} 18. Qd3 {[%clk
01:12:52]} {[%emt 00:03:02]} Qc8 {[%clk 01:01:04]} {[%emt 00:04:18]} 19. c3
{[%clk 01:11:59]} {[%emt 00:01:37]} Nxe4 {[%clk 00:59:04]} {[%emt 00:02:27]} 20.
a4 {[%clk 01:08:59]} {[%emt 00:03:32]} Rd8 {[%clk 00:58:38]} {[%emt 00:00:56]}
21. Qc2 {[%clk 01:08:54]} {[%emt 00:00:27]} Nc5 {[%clk 00:35:23]} {[%emt
00:23:52]} 22. Nxc5 {[%clk 01:05:13]} {[%emt 00:04:12]} Bxc5 {[%clk 00:35:47]}
{[%emt 00:00:05]} 23. axb5 {[%clk 01:02:39]} {[%emt 00:03:05]} axb5 {[%clk
00:34:40]} {[%emt 00:01:37]} 24. Re1 {[%clk 01:01:55]} {[%emt 00:01:13]} f6
{[%clk 00:33:38]} {[%emt 00:01:32]} 25. Qb3 {[%clk 00:59:56]} {[%emt 00:02:29]}
Bxe3+ {[%clk 00:33:45]} {[%emt 00:00:24]} 26. Rfxe3 {[%clk 00:59:46]} {[%emt
00:00:40]} Qc5 {[%clk 00:34:05]} {[%emt 00:00:10]} 27. Kf1 {[%clk 00:58:32]}
{[%emt 00:01:44]} Qd5 {[%clk 00:32:34]} {[%emt 00:02:00]} 28. Re4 {[%clk
00:54:47]} {[%emt 00:04:15]} Qd3+ {[%clk 00:25:29]} {[%emt 00:07:35]} 29. Kg1
{[%clk 00:54:37]} {[%emt 00:00:34]} Kh8 {[%clk 00:25:22]} {[%emt 00:00:42]} 30.
Rxc4 {[%clk 00:54:11]} {[%emt 00:00:56]} bxc4 {[%clk 00:25:46]} {[%emt
00:00:07]} 31. Qb6 {[%clk 00:53:36]} {[%emt 00:01:04]} h6 {[%clk 00:24:11]}
{[%emt 00:02:06]} 32. h3 {[%clk 00:51:45]} {[%emt 00:02:21]} Rc8 {[%clk
00:19:32]} {[%emt 00:05:10]} 33. Qb7 {[%clk 00:51:09]} {[%emt 00:01:03]} Qxf5
{[%clk 00:19:52]} {[%emt 00:00:13]} 34. Ra1 {[%clk 00:49:59]} {[%emt 00:01:41]}
Rd8 {[%clk 00:17:33]} {[%emt 00:02:48]} 35. Qc7 {[%clk 00:49:50]} {[%emt
00:00:40]} Rc8 {[%clk 00:18:00]} {[%emt 00:00:02]} 36. Qb7 {[%clk 00:49:43]}
{[%emt 00:00:38]} Rd8 {[%clk 00:17:24]} {[%emt 00:01:06]} 37. Qc7 {[%clk
00:49:22]} {[%emt 00:00:51]} Qc8 {[%clk 00:14:36]} {[%emt 00:03:17]} 38. Qxc8
{[%clk 00:49:24]} {[%emt 00:00:28]} Rxc8 {[%clk 00:15:05]} {[%emt 00:00:02]} 39.
Ra4 {[%clk 00:49:46]} {[%emt 00:00:08]} Kh7 {[%clk 00:10:21]} {[%emt 00:05:13]}
40. Kf2 {[%clk 00:49:46]} {[%emt 00:00:30]} Kg6 {[%clk 00:10:15]} {[%emt
00:00:36]} 41. Kf3 {[%clk 00:50:00]} {[%emt 00:00:16]} h5 {[%clk 00:04:39]}
{[%emt 00:06:05]} 42. h4 {[%clk 00:49:08]} {[%emt 00:01:23]} Kf5 {[%clk
00:04:43]} {[%emt 00:00:26]} 43. Ra7 {[%clk 00:49:06]} {[%emt 00:00:33]} g6
{[%clk 00:05:09]} {[%emt 00:00:04]} 44. g3 {[%clk 00:48:57]} {[%emt 00:00:39]}
Rc5 {[%clk 00:04:12]} {[%emt 00:01:26]} 45. Rd7 {[%clk 00:47:38]} {[%emt
00:01:49]} Rc6 {[%clk 00:02:13]} {[%emt 00:02:30]} 46. Rd2 {[%clk 00:47:40]}
{[%emt 00:00:24]} g5 {[%clk 00:28:41]} {[%emt 00:04:06]} 47. hxg5 {[%clk
01:17:39]} {[%emt 00:00:30]} Kxg5 {[%clk 00:28:45]} {[%emt 00:00:25]} 48. Rg2
{[%clk 01:16:34]} {[%emt 00:01:36]} f5 {[%clk 00:27:20]} {[%emt 00:01:56]} 49.
Ke3 {[%clk 01:16:04]} {[%emt 00:01:00]} Rd6 {[%clk 00:27:19]} {[%emt 00:00:31]}
50. Re2 {[%clk 01:15:42]} {[%emt 00:00:52]} Rd3+ {[%clk 00:26:34]} {[%emt
00:01:16]} 51. Kf2 {[%clk 01:15:59]} {[%emt 00:00:13]} e4 {[%clk 00:26:11]}
{[%emt 00:00:53]} 52. Kg2 {[%clk 01:14:34]} {[%emt 00:01:56]} Kg4 {[%clk
00:25:49]} {[%emt 00:00:52]} 0-1

[Event "2. Itzehoer Schach Open"]
[Site "Itzehoe, Germany"]
[Date "2023.05.01"]
[Round "5.5"]
[White "Kosanke, Stefan"]
[Black "Fuhrmann, Bahne"]
[Result "0-1"]
[TimeControl "90 min / 40 Züge + 30 min + 30 Sek pro Zug"]
[WhiteElo "1933"]
[BlackElo "2035"]

1. d4 {[%clk 01:30:58]} Nf6 {[%clk 01:30:56]} {[%emt 00:00:05]} 2. g3 {[%clk
01:31:03]} {[%emt 00:00:25]} g6 {[%clk 01:31:08]} {[%emt 00:00:18]} 3. Bg2
{[%clk 01:31:29]} {[%emt 00:00:04]} Bg7 {[%clk 01:31:02]} {[%emt 00:00:37]} 4.
Nf3 {[%emt 00:00:36]} d5 {[%clk 01:31:22]} 5. c4 {[%clk 01:31:21]} {[%emt
00:00:41]} O-O {[%clk 01:31:46]} {[%emt 00:00:06]} 6. cxd5 {[%clk 01:30:17]}
{[%emt 00:01:34]} Nxd5 {[%clk 01:32:09]} {[%emt 00:00:07]} 7. O-O {[%clk
01:30:07]} {[%emt 00:00:39]} c5 {[%clk 01:30:05]} {[%emt 00:02:36]} 8. dxc5
{[%clk 01:21:51]} {[%emt 00:08:46]} Na6 {[%clk 01:28:07]} {[%emt 00:02:27]} 9.
Ne1 {[%clk 01:16:45]} {[%emt 00:05:36]} Nf4 {[%clk 01:26:41]} {[%emt 00:01:57]}
10. Nd3 {[%clk 01:08:20]} {[%emt 00:08:55]} Nxg2 {[%clk 01:22:53]} {[%emt
00:04:17]} 11. Kxg2 {[%clk 01:08:19]} {[%emt 00:00:31]} Qd5+ {[%clk 01:23:13]}
{[%emt 00:00:11]} 12. Kg1 {[%clk 01:07:02]} {[%emt 00:01:47]} Rd8 {[%clk
01:16:23]} {[%emt 00:07:19]} 13. Qb3 {[%clk 01:05:06]} {[%emt 00:02:27]} Qxb3
{[%clk 01:14:05]} {[%emt 00:02:47]} 14. axb3 {[%clk 01:05:27]} {[%emt
00:00:09]} Bg4 {[%clk 01:06:50]} {[%emt 00:07:45]} 15. f3 {[%clk 01:04:48]}
{[%emt 00:01:09]} Bh3 {[%clk 01:07:08]} {[%emt 00:00:12]} 16. c6 {[%clk
01:03:23]} {[%emt 00:01:56]} Bxf1 {[%clk 01:02:04]} {[%emt 00:05:33]} 17. Kxf1
{[%clk 01:02:09]} {[%emt 00:01:44]} Nc7 {[%clk 00:56:15]} {[%emt 00:06:19]} 18.
cxb7 {[%clk 01:00:38]} {[%emt 00:02:01]} Rab8 {[%clk 00:56:40]} {[%emt
00:00:05]} 19. Rxa7 {[%clk 01:00:39]} {[%emt 00:00:29]} Nb5 {[%clk 00:54:12]}
{[%emt 00:02:58]} 20. Ra8 {[%clk 00:59:05]} {[%emt 00:02:05]} Rxa8 {[%clk
00:54:36]} {[%emt 00:00:06]} 21. bxa8=Q Rxa8 {[%clk 00:55:03]} 22. Na3 {[%clk
00:58:40]} {[%emt 00:01:17]} Bxb2 {[%clk 00:49:22]} {[%emt 00:06:12]} 23. Bxb2
{[%clk 00:56:54]} {[%emt 00:02:16]} Nxa3 {[%clk 00:49:47]} {[%emt 00:00:05]} 24.
Ke1 {[%clk 00:56:25]} {[%emt 00:00:59]} Nb5 {[%clk 00:49:13]} {[%emt 00:01:04]}
25. Kd2 {[%clk 00:55:21]} {[%emt 00:01:33]} f6 {[%clk 00:49:24]} {[%emt
00:00:19]} 26. f4 {[%clk 00:54:09]} {[%emt 00:01:43]} Kf7 {[%clk 00:48:22]}
{[%emt 00:01:31]} 27. b4 {[%clk 00:52:00]} {[%emt 00:02:39]} Nd6 {[%clk
00:41:22]} {[%emt 00:07:29]} 28. Kc3 {[%clk 00:49:41]} {[%emt 00:02:50]} Rc8+
{[%clk 00:40:50]} {[%emt 00:01:02]} 29. Kb3 {[%clk 00:47:47]} {[%emt 00:02:24]}
Ke6 {[%clk 00:40:31]} {[%emt 00:00:49]} 30. Bd4 {[%clk 00:43:35]} {[%emt
00:04:41]} Kd5 {[%clk 00:38:26]} {[%emt 00:02:36]} 31. Bc5 {[%clk 00:39:53]}
{[%emt 00:04:12]} e6 {[%clk 00:37:55]} {[%emt 00:01:01]} 32. Nf2 {[%clk
00:37:53]} {[%emt 00:02:30]} f5 {[%clk 00:36:54]} {[%emt 00:01:32]} 33. Nd3
{[%clk 00:36:53]} {[%emt 00:01:30]} Ne4 {[%clk 00:35:24]} {[%emt 00:01:59]} 34.
Be7 {[%clk 00:30:35]} {[%emt 00:06:48]} Nc3 {[%clk 00:35:01]} {[%emt 00:00:53]}
35. e3 {[%clk 00:28:43]} {[%emt 00:02:22]} Ne4 {[%clk 00:33:21]} {[%emt
00:02:11]} 36. Nc5 {[%clk 00:25:43]} {[%emt 00:03:30]} Nd2+ {[%clk 00:32:00]}
{[%emt 00:01:51]} 37. Ka4 {[%clk 00:23:58]} {[%emt 00:02:15]} Nc4 {[%clk
00:29:08]} {[%emt 00:03:21]} 38. Kb5 {[%clk 00:21:21]} {[%emt 00:03:07]} Rb8+
{[%clk 00:29:02]} {[%emt 00:00:36]} 39. Ka4 {[%clk 00:18:14]} {[%emt 00:03:37]}
Nxe3 {[%clk 00:28:18]} {[%emt 00:01:14]} 40. Na6 {[%clk 00:18:18]} {[%emt
00:00:27]} Rb7 {[%clk 00:27:48]} {[%emt 00:01:00]} 41. Bc5 {[%clk 00:14:47]}
{[%emt 00:04:00]} Nf1 {[%clk 00:24:34]} {[%emt 00:03:45]} 42. Bg1 {[%clk
00:12:16]} {[%emt 00:03:00]} Kc4 {[%clk 00:24:42]} {[%emt 00:00:23]} 43. Ka5
{[%clk 00:11:50]} {[%emt 00:00:56]} Rb5+ {[%clk 00:24:44]} {[%emt 00:00:28]} 44.
Ka4 {[%clk 00:12:18]} {[%emt 00:00:01]} h6 {[%clk 00:24:29]} {[%emt 00:00:45]}
45. Bc5 {[%clk 00:12:27]} {[%emt 00:00:21]} Rb7 {[%clk 00:23:41]} {[%emt
00:01:18]} 46. Ka5 {[%clk 00:10:57]} {[%emt 00:02:01]} Nxh2 {[%clk 00:20:00]}
{[%emt 00:04:10]} 47. Bf8 {[%clk 00:10:17]} {[%emt 00:01:10]} h5 {[%clk
00:19:37]} {[%emt 00:00:54]} 48. Bc5 {[%clk 00:03:19]} {[%emt 00:07:27]} Nf1
{[%clk 00:19:55]} {[%emt 00:00:12]} 49. Bf2 {[%clk 00:03:44]} {[%emt 00:00:06]}
Rb5+ {[%clk 00:20:10]} {[%emt 00:00:15]} 50. Ka4 {[%clk 00:04:07]} {[%emt
00:00:07]} Nd2 {[%clk 00:20:20]} {[%emt 00:00:20]} 51. Be1 {[%clk 00:04:22]}
{[%emt 00:00:14]} Ne4 {[%clk 00:20:24]} {[%emt 00:00:25]} 52. Nc7 {[%clk
00:04:01]} {[%emt 00:00:52]} Rb7 {[%clk 00:20:33]} {[%emt 00:00:21]} 53. Na6
{[%clk 00:04:12]} {[%emt 00:00:19]} Rd7 {[%clk 00:20:12]} {[%emt 00:00:51]} 0-1

[Event "2. Itzehoer Schach Open"]
[Site "Itzehoe, Germany"]
[Date "2023.05.01"]
[Round "5.19"]
[White "Steiner, Peter Markus"]
[Black "Moysich, Dirk"]
[Result "0-1"]
[TimeControl "90 min / 40 Züge + 30 min + 30 Sek pro Zug"]
[WhiteElo "1603"]
[BlackElo "1860"]

1. b4 {[%clk 01:30:06]} {[%emt 00:00:06]} d6 {[%clk 01:30:06]} {[%emt
00:01:42]} 2. Bb2 {[%clk 01:30:27]} {[%emt 00:00:09]} e5 {[%clk 01:30:19]}
{[%emt 00:00:17]} 3. e3 {[%clk 01:30:48]} {[%emt 00:00:08]} Nf6 {[%clk
01:30:01]} {[%emt 00:00:49]} 4. c4 {[%clk 01:31:08]} {[%emt 00:00:09]} Be7
{[%clk 01:30:06]} {[%emt 00:00:25]} 5. Nf3 {[%clk 01:31:27]} {[%emt 00:00:11]}
O-O {[%clk 01:29:39]} {[%emt 00:00:57]} 6. Nc3 {[%clk 01:31:46]} {[%emt
00:00:10]} Bg4 {[%clk 01:29:24]} {[%emt 00:00:47]} 7. Be2 {[%clk 01:32:11]}
{[%emt 00:00:05]} Nbd7 {[%clk 01:28:49]} {[%emt 00:01:05]} 8. O-O {[%clk
01:32:13]} {[%emt 00:00:27]} c6 {[%clk 01:28:54]} {[%emt 00:00:25]} 9. d4
{[%clk 01:32:13]} {[%emt 00:00:30]} e4 {[%clk 01:25:17]} {[%emt 00:04:07]} 10.
Nd2 {[%clk 01:32:28]} {[%emt 00:00:13]} Bxe2 {[%clk 01:25:24]} {[%emt
00:00:25]} 11. Nxe2 {[%clk 01:32:08]} {[%emt 00:00:49]} d5 {[%clk 01:25:05]}
{[%emt 00:00:50]} 12. Qb3 {[%clk 01:31:39]} {[%emt 00:00:58]} Nb6 {[%clk
01:06:18]} {[%emt 00:19:18]} 13. a4 {[%clk 01:29:56]} {[%emt 00:02:13]} Re8
{[%clk 00:46:36]} {[%emt 00:20:11]} 14. Rfc1 {[%clk 01:21:35]} {[%emt
00:08:52]} dxc4 {[%clk 00:37:30]} {[%emt 00:09:37]} 15. Nxc4 {[%clk 01:21:44]}
{[%emt 00:00:20]} Nxc4 {[%clk 00:37:55]} {[%emt 00:00:05]} 16. Rxc4 {[%clk
01:17:45]} {[%emt 00:04:29]} Nd5 {[%clk 00:38:10]} {[%emt 00:00:15]} 17. b5
{[%clk 01:14:12]} {[%emt 00:04:03]} cxb5 {[%clk 00:29:33]} {[%emt 00:09:08]} 18.
axb5 {[%clk 01:11:17]} {[%emt 00:03:24]} Nb6 {[%clk 00:24:38]} {[%emt
00:05:25]} 19. Rc2 {[%clk 01:10:58]} {[%emt 00:00:47]} Qd7 {[%clk 00:23:51]}
{[%emt 00:01:19]} 20. Rac1 {[%clk 01:09:42]} {[%emt 00:01:45]} Rac8 {[%clk
00:18:57]} {[%emt 00:05:25]} 21. Nc3 {[%clk 01:08:29]} {[%emt 00:01:42]} Bd6
{[%clk 00:18:31]} {[%emt 00:00:57]} 22. Na4 {[%clk 01:04:01]} {[%emt 00:04:58]}
Rxc2 {[%clk 00:17:53]} {[%emt 00:01:08]} 23. Rxc2 {[%clk 01:00:31]} {[%emt
00:03:59]} Nxa4 {[%clk 00:18:15]} {[%emt 00:00:09]} 24. Qxa4 {[%clk 01:00:45]}
{[%emt 00:00:15]} a6 {[%clk 00:18:03]} {[%emt 00:00:43]} 25. Qc4 {[%clk
00:50:46]} {[%emt 00:10:29]} axb5 {[%clk 00:18:20]} {[%emt 00:00:14]} 26. Qc3
{[%clk 00:51:07]} {[%emt 00:00:08]} b4 {[%clk 00:17:36]} {[%emt 00:01:15]} 27.
Qc4 {[%clk 00:51:18]} {[%emt 00:00:18]} Kf8 {[%clk 00:15:51]} {[%emt 00:02:15]}
28. h3 {[%clk 00:51:22]} {[%emt 00:00:26]} f6 {[%clk 00:14:07]} {[%emt
00:02:15]} 29. Kf1 {[%clk 00:51:32]} {[%emt 00:00:19]} f5 {[%clk 00:09:47]}
{[%emt 00:04:51]} 30. d5 {[%clk 00:44:48]} {[%emt 00:07:13]} Kg8 {[%clk
00:07:55]} {[%emt 00:02:22]} 31. Bd4 {[%clk 00:43:34]} {[%emt 00:01:44]} b5
{[%clk 00:07:14]} {[%emt 00:01:12]} 32. Qc6 {[%clk 00:42:43]} {[%emt 00:01:20]}
Qxc6 {[%clk 00:07:36]} {[%emt 00:00:08]} 33. dxc6 {[%clk 00:43:02]} {[%emt
00:00:11]} Rc8 {[%clk 00:07:50]} {[%emt 00:00:16]} 34. Ke2 {[%clk 00:43:06]}
{[%emt 00:00:26]} Kf7 {[%clk 00:08:16]} {[%emt 00:00:04]} 35. Kd1 {[%clk
00:43:22]} {[%emt 00:00:14]} g6 {[%clk 00:08:42]} {[%emt 00:00:04]} 36. Kc1
{[%clk 00:43:42]} {[%emt 00:00:10]} Ke6 {[%clk 00:09:10]} {[%emt 00:00:02]} 37.
Kb2 {[%clk 00:43:08]} {[%emt 00:01:04]} Kd5 {[%clk 00:09:36]} {[%emt 00:00:04]}
38. Kb3 {[%clk 00:43:27]} {[%emt 00:00:12]} Rxc6 {[%clk 00:09:38]} {[%emt
00:00:28]} 39. Rxc6 {[%clk 00:43:48]} {[%emt 00:00:09]} Kxc6 {[%clk 00:10:07]}
{[%emt 00:00:01]} 40. Bb2 {[%clk 00:43:09]} {[%emt 00:01:09]} Bc5 {[%clk
00:06:01]} {[%emt 00:04:35]} 41. Be5 {[%clk 00:42:28]} {[%emt 00:01:08]} Kd5
{[%clk 00:04:22]} {[%emt 00:02:11]} 42. Bb2 {[%clk 00:42:09]} {[%emt 00:00:49]}
Be7 {[%clk 00:02:52]} {[%emt 00:02:00]} 43. g3 {[%clk 00:38:52]} {[%emt
00:03:47]} g5 {[%clk 00:01:35]} {[%emt 00:01:48]} 44. Bg7 {[%clk 00:37:42]}
{[%emt 00:01:40]} h5 {[%clk 00:01:06]} {[%emt 00:00:59]} 45. Bb2 {[%clk
00:37:39]} {[%emt 00:00:33]} Ke6 {[%clk 00:15:31]} {[%emt 00:16:06]} 46. Bd4
{[%clk 01:04:12]} {[%emt 00:03:56]} Bd6 {[%clk 00:15:46]} {[%emt 00:00:16]} 47.
Bb2 {[%clk 01:03:57]} {[%emt 00:00:44]} f4 {[%clk 00:16:05]} {[%emt 00:00:11]}
48. g4 {[%clk 01:03:36]} {[%emt 00:00:51]} hxg4 {[%clk 00:16:17]} {[%emt
00:00:19]} 49. hxg4 {[%clk 01:04:00]} {[%emt 00:00:05]} f3 {[%clk 00:10:35]}
{[%emt 00:06:12]} 50. Bd4 {[%clk 01:03:02]} {[%emt 00:01:27]} Bg3 {[%clk
00:10:49]} {[%emt 00:00:16]} 0-1